fUSD/lending_fUSD_20240123
["ID","MTS","AMOUNT","RATE_DAILY","PERIOD"]
[312572232,1706014265786,-158.14,0.000504,6]
[312572233,1706014265796,-158.14,0.000504,6]
[312572234,1706014265805,-158.14,0.000504,6]
[312572235,1706014265816,-152.88,0.000504,6]
[312572236,1706014265825,-152.88,0.000504,6]
[312572237,1706014265835,-152.88,0.000504,6]
[312572238,1706014265844,-152.88,0.000504,6]
[312572239,1706014265854,-152.88,0.000504,6]
[312572240,1706014265863,-152.88,0.000504,6]
[312572241,1706014265872,-152.88,0.000504,6]
[312572242,1706014265882,-152.88,0.000504,6]
[312572243,1706014265892,-152.88,0.000504,6]
[312572244,1706014265902,-152.88,0.000504,6]
[312572245,1706014265911,-152.88,0.000504,6]
[312572246,1706014265920,-152.88,0.000504,6]
[312572247,1706014265930,-152.88,0.000504,6]
[312572248,1706014265940,-152.88,0.000504,6]
[312572249,1706014265950,-2527.34,0.000504,6]
[312572250,1706014265959,-2527.34,0.000504,6]
[312572251,1706014265968,-2527.34,0.000504,6]
[312572252,1706014265978,-2527.34,0.000504,6]
[312572253,1706014265988,-2527.34,0.000504,6]
[312572254,1706014265997,-2527.34,0.000504,6]
[312572255,1706014266006,-2527.34,0.000504,6]
[312572256,1706014266016,-2527.34,0.000504,6]
[312572257,1706014266025,-2527.34,0.000504,6]
[312572258,1706014266034,-2527.34,0.000504,6]
[312572259,1706014266043,-2527.34,0.000504,6]
[312572260,1706014266053,-2527.34,0.000504,6]
[312572261,1706014266062,-2527.34,0.000504,6]
[312572262,1706014266072,-2527.34,0.000504,6]
[312572263,1706014266082,-2527.34,0.000504,6]
[312572264,1706014266092,-2527.34,0.000504,6]
[312572265,1706014266101,-2527.34,0.000504,6]
[312572266,1706014266110,-2527.34,0.000504,6]
[312572267,1706014266120,-2527.34,0.000504,6]
[312572268,1706014266130,-2527.34,0.000504,6]
[312572269,1706014266139,-5780.46,0.00050426,2]
[312572270,1706014266149,-1104.79376073,0.00050426,14]
[312572271,1706014266158,-444.0123,0.00050448,16]
[312572272,1706014266167,-150.0,0.00050469,2]
[312572273,1706014266176,-156.14673503,0.00050554,60]
[312572274,1706014266185,-154.12274306,0.00050669,47]
[312572275,1706014266195,-444.0123,0.00050748,16]
[312572276,1706014266204,-266.82,0.000508,60]
[312572277,1706014266213,-327.29243592,0.00050802,60]
[312572278,1706014266222,-327.29243592,0.00050873,60]
[312572279,1706014266231,-149999.0,0.000509,30]
[312572280,1706014266240,-600000.0,0.000509,36]
[312572281,1706014266249,-250.0,0.000509,14]
[312572282,1706014266258,-250.0,0.000509,14]
[312572283,1706014266267,-250.0,0.000509,14]
[312572284,1706014266276,-250.0,0.000509,14]
[312572285,1706014266286,-250.0,0.000509,14]
[312572286,1706014266295,-257.0,0.000509,14]
[312572287,1706014266304,-200.0,0.00050987,50]
[312572288,1706014266314,-100000.0,0.00051,41]
[312572289,1706014266324,-4796.74207242,0.00051,4]
[312572290,1706014266334,-193.8905985,0.00051,45]
[312572291,1706014266344,-1000000.0,0.00051,120]
[312572292,1706014266353,-282.6,0.00051,120]
[312572293,1706014266363,-1280.64,0.00051,120]
[312572294,1706014266372,-90832.06075773,0.00051,45]
[312572295,1706014266382,-1092.58025201,0.00051,45]
[312572296,1706014266391,-300.0,0.00051,29]
[312572297,1706014266400,-1100.0,0.00051,3]
[312572298,1706014266410,-574.620273,0.00051,16]
[312572299,1706014266419,-202906.11184198,0.00051,120]
[312572300,1706014266429,-3053.0,0.00051,60]
[312572301,1706014266438,-2034.0,0.00051,60]
[312572302,1706014266448,-150.0,0.00051,29]
[312572303,1706014266457,-50000.0,0.00051012,30]
[312572304,1706014266466,-444.0123,0.00051148,16]
[312572305,1706014266476,-327.29243592,0.00051248,60]
[312572306,1706014266485,-1208.0,0.00051358,30]
[312572307,1706014266495,-184.0,0.000514,120]
[312572308,1706014266504,-152.0,0.000514,60]
[312572309,1706014266513,-152.7602872,0.000514,60]
[312572310,1706014266522,-157.0,0.000514,60]
[312572311,1706014266532,-150.0,0.00051478,2]
[312572312,1706014266541,-327.29243592,0.00051488,60]
[312572313,1706014266551,-444.0123,0.00051498,16]
[312572314,1706014266561,-327.29243592,0.00051524,60]
[312572315,1706014266570,-363.32,0.00051557,120]
[312572316,1706014266581,-177.99355228,0.00051569,60]
[312572317,1706014266590,-153.90742568,0.00051584,60]
[312572318,1706014266599,-154.86248357,0.00051584,60]
[312572319,1706014266608,-10000.0,0.000516,14]
[312572320,1706014266618,-654.91,0.00051663,2]
[312572321,1706014266627,-183.194,0.00051678,120]
[312572322,1706014266637,-327.29243592,0.00051732,60]
[312572323,1706014266646,-444.0123,0.00051748,16]
[312572324,1706014266657,-17438.0,0.000518,120]
[312572325,1706014266667,-266.40179261,0.0005189,60]
[312572326,1706014266676,-155.33183537,0.00051894,60]
[312572327,1706014266685,-154.39499694,0.00051912,60]
[312572328,1706014266694,-327.29243592,0.00051912,60]
[312572329,1706014266704,-31409.84361564,0.0005195,30]
[312572330,1706014266713,-20068.35405432,0.0005195,30]
[312572331,1706014266722,-3813.27058815,0.0005195,30]
[312572332,1706014266732,-200.0,0.00051987,52]
[312572333,1706014266741,-100000.0,0.00052,42]
[312572334,1706014266750,-525.21693573,0.00052,2]
[312572335,1706014266759,-1000000.0,0.00052,120]
[312572336,1706014266769,-16660.69340828,0.00052,30]
[312572337,1706014266778,-592.0,0.00052,120]
[312572338,1706014266788,-1228.53520596,0.00052,120]
[312572339,1706014266797,-500.0,0.00052,120]
[312572340,1706014266807,-1251.92,0.00052,120]
[312572341,1706014266819,-300.0,0.00052,30]
[312572342,1706014266829,-150.0,0.00052,30]
[312572343,1706014266839,-1104.79376073,0.00052005,14]
[312572344,1706014266849,-173.21119187,0.00052027,30]
[312572345,1706014266859,-150.0,0.00052027,30]
[312572346,1706014266868,-562.5,0.00052054,120]
[312572347,1706014266878,-150.0,0.00052054,120]
[312572348,1706014266887,-1000.0,0.000521,2]
[312572349,1706014266897,-266.40179261,0.000521,60]
[312572350,1706014266906,-327.29243592,0.00052133,60]
[312572351,1706014266915,-92520.53436382,0.0005214,60]
[312572352,1706014283720,-95981.92574326,0.0005214,60]
[312572353,1706014283733,-11497.53989292,0.0005214,60]
[312572354,1706014283743,-444.0123,0.00052148,16]
[312572355,1706014283752,-174.830252,0.000522,120]
[312572356,1706014283761,-174.83025196,0.000522,120]
[312572357,1706014283771,-174.83025196,0.000522,120]
[312572358,1706014283781,-174.83025196,0.000522,120]
[312572359,1706014283790,-174.83025196,0.000522,120]
[312572360,1706014283800,-154.39499694,0.00052278,60]
[312572361,1706014283810,-154.12274306,0.00052285,53]
[312572362,1706014283824,-266.40179261,0.00052298,60]
[312572363,1706014283833,-154.39499694,0.00052354,60]
[312572364,1706014283844,-444.0123,0.00052448,16]
[312572365,1706014283854,-150.0,0.00052487,2]
[312572366,1706014283863,-13695.73849314,0.000525,120]
[312572367,1706014283876,-1899.8979998,0.000525,120]
[312572368,1706014283887,-1864.83579482,0.000525,120]
[312572369,1706014284276,-1756.74566641,0.0003888,2]
[312572370,1706014284287,-16917.04802848,0.0003888,2]
[312572371,1706014284297,-591.12959312,0.000525,120]
[312572372,1706014284436,-2394.28574042,0.000525,120]
[312572373,1706014284448,-866.73070344,0.000525,120]
[312572374,1706014285992,-1853.57655761,0.00031083,4]
[312572375,1706014286001,-328.58006833,0.00031083,4]
[312572376,1706014286011,-1761.91449993,0.00031101,4]
[312572377,1706014286021,-150.0,0.00034878,2]
[312572378,1706014286029,-152.31697364,0.00041315,2]
[312572379,1706014286173,-139.71302636,0.00041315,2]
[312572380,1706014286183,-22362.38356882,0.000525,120]
[312572382,1706014446274,499.999999,0.0002,2]
[312572383,1706014822238,837.19098398,0.0002,2]
[312572384,1706014823049,271.94,0.00020839,2]
[312572386,1706014966128,1128.406,0.00021161,14]
[312572388,1706015051942,-521.34278386,0.00021261,2]
[312572389,1706015051965,-172.50861173,0.00021264,2]
[312572390,1706015051985,-7203.18079498,0.00021362,2]
[312572391,1706015052006,-1847.74262692,0.00021364,2]
[312572392,1706015052027,-172.50861169,0.00021537,2]
[312572393,1706015052050,-957.69421576,0.000218,2]
[312572394,1706015052071,-172.50861169,0.00021809,2]
[312572395,1706015052090,-166.31,0.00021922,2]
[312572396,1706015054449,521.34278386,0.00021263,2]
[312572397,1706015064128,165.17419233,0.00021164,2]
[312572398,1706015092799,250.0,0.00021946,2]
[312572399,1706015134958,2000.0,0.00021892,2]
[312572400,1706015142055,500.0,0.00021927,2]
[312572401,1706015152317,818.86,0.00021927,2]
[312572402,1706015185173,2571.9,0.00021927,2]
[312572403,1706015188938,250.0,0.00021927,2]
[312572404,1706015202146,2509.16,0.00021962,2]
[312572405,1706015208931,150.0,0.00021962,2]
[312572406,1706015244738,1000.0,0.0002194,2]
[312572407,1706015262482,325.27,0.00021972,2]
[312572408,1706015340234,500.0,0.00021822,2]
[312572409,1706015349629,371.62,0.00021774,2]
[312572410,1706015376965,852.79586051,0.00021774,2]
[312572411,1706015387868,164.96152334,0.00021999,2]
[312572412,1706015403756,3193.45940924,0.00021999,2]
[312572413,1706015406833,4353.97613252,0.00021999,2]
[312572414,1706015409216,155.0,0.00021774,2]
[312572415,1706015413651,1854.24120064,0.00021999,2]
[312572416,1706015421818,3193.45940924,0.00021588,2]
[312572438,1706015432247,-867.95596008,0.00022,2]
[312572440,1706015432257,-499.03313168,0.00022001,2]
[312572441,1706015432269,-314.47830538,0.00022001,2]
[312572442,1706015432282,-1312.90177721,0.00022001,2]
[312572443,1706015432295,-691.59727248,0.00022001,2]
[312572444,1706015432307,-474.43698901,0.00022001,2]
[312572445,1706015432322,-300.0,0.00022001,2]
[312572446,1706015432334,-19038.39229083,0.00022001,2]
[312572447,1706015432343,-301.17,0.00022005,2]
[312572448,1706015432353,-3947.32717882,0.00022018,2]
[312572449,1706015432362,-4426.48,0.00022019,2]
[312572450,1706015432372,-200.0,0.0002207,2]
[312572451,1706015432382,-172.50861169,0.00022082,2]
[312572452,1706015432392,-871.01,0.00022122,2]
[312572453,1706015432401,-863.22,0.00022122,2]
[312572454,1706015432411,-260.66,0.00022127,2]
[312572455,1706015432421,-516.0,0.00022134,2]
[312572456,1706015432431,-260.66,0.00022188,2]
[312572457,1706015432440,-260.66,0.00022249,2]
[312572458,1706015432449,-260.66,0.00022309,2]
[312572459,1706015432458,-172.50861169,0.00022355,2]
[312572460,1706015432468,-260.66,0.0002237,2]
[312572461,1706015432477,-5406.9404,0.0002239,2]
[312572462,1706015432487,-11923.5228,0.0002239,2]
[312572463,1706015432496,-260.66,0.00022431,2]
[312572464,1706015432506,-157.14123053,0.00022488,2]
[312572465,1706015432516,-542.84106609,0.00022488,2]
[312572466,1706015432526,-203.14380127,0.00022488,2]
[312572467,1706015432536,-499.99,0.00022488,2]
[312572468,1706015432546,-326.39,0.00022488,2]
[312572469,1706015432555,-279.50093238,0.00022488,2]
[312572470,1706015432565,-289.13231179,0.00022488,2]
[312572471,1706015432574,-1179.42600264,0.00022488,2]
[312572472,1706015432584,-1068.82822182,0.00022488,2]
[312572473,1706015432594,-164.8394199,0.00022488,2]
[312572474,1706015432603,-2769.6329867,0.00022488,2]
[312572475,1706015432613,-1850.65137572,0.00022488,2]
[312572476,1706015432622,-155.0,0.00022489,2]
[312572478,1706015432631,-3031.76013356,0.00022489,2]
[312572480,1706015432641,-14646.18588391,0.0002249,5]
[312572482,1706015432654,-159327.62414888,0.0002249,5]
[312572483,1706015432664,-260.66,0.00022491,2]
[312572484,1706015432673,-260.66,0.00022552,2]
[312572485,1706015432683,-260.66,0.00022613,2]
[312572487,1706015432692,-172.50861169,0.00022627,2]
[312572489,1706015432701,-260.66,0.00022673,2]
[312572491,1706015432711,-260.66,0.00022734,2]
[312572493,1706015432720,-193.39019381,0.00022768,2]
[312572495,1706015432729,-260.66,0.00022795,2]
[312572497,1706015432740,-260.66,0.00022856,2]
[312572498,1706015432749,-90323.8960536,0.000229,2]
[312572499,1706015432759,-172.50861169,0.000229,2]
[312572500,1706015432769,-154.12274306,0.000229,2]
[312572501,1706015432779,-1875.76477063,0.000229,2]
[312572502,1706015432788,-1048.32149688,0.000229,2]
[312572503,1706015432797,-1691.71668874,0.000229,2]
[312572504,1706015432807,-260.66,0.00022916,2]
[312572505,1706015432816,-516.0,0.00022953,2]
[312572506,1706015432826,-260.66,0.00022977,2]
[312572507,1706015432835,-2139.90801857,0.00022998,2]
[312572508,1706015432844,-162.24662647,0.00022998,2]
[312572509,1706015432854,-155.93996978,0.00022998,2]
[312572510,1706015432863,-523.73846155,0.00022998,2]
[312572511,1706015432873,-276.42831974,0.00022998,2]
[312572512,1706015432883,-294.20737805,0.00022998,2]
[312572513,1706015432893,-213.65259234,0.00022998,2]
[312572514,1706015432903,-5957.53282957,0.00022998,2]
[312572515,1706015432913,-3329.99127104,0.00022998,2]
[312572516,1706015432922,-7298.39714141,0.00022998,2]
[312572517,1706015432942,-3909.30620458,0.00022998,2]
[312572518,1706015432954,-1109.94288605,0.00022998,2]
[312572519,1706015432967,-1931.9163737,0.00022998,2]
[312572520,1706015432979,-604.16238233,0.00022998,2]
[312572521,1706015433013,-577.37079432,0.00022998,2]
[312572522,1706015433026,-18334.36037099,0.00022998,2]
[312572523,1706015433037,-384.89695626,0.00022998,2]
[312572524,1706015433048,-184.77981935,0.00022998,2]
[312572525,1706015433059,-697.35894259,0.00022998,2]
[312572526,1706015433071,-8900.43246578,0.00022998,2]
[312572527,1706015433082,-854.21,0.00022998,2]
[312572528,1706015433092,-282.12154414,0.00022999,2]
[312572529,1706015433103,-500.0,0.00022999,2]
[312572530,1706015433113,-294.36887801,0.00022999,2]
[312572531,1706015433123,-500.0,0.00022999,2]
[312572532,1706015433133,-500.0,0.00022999,2]
[312572533,1706015433143,-166.3385644,0.00022999,2]
[312572534,1706015433153,-500.0,0.00022999,2]
[312572535,1706015433164,-500.0,0.00022999,2]
[312572536,1706015433175,-1969.38848745,0.00022999,2]
[312572537,1706015433185,-281.95764708,0.00022999,2]
[312572538,1706015433195,-191.50832139,0.00022999,2]
[312572539,1706015433208,-191.50832139,0.00022999,2]
[312572540,1706015433218,-281.95764708,0.00022999,2]
[312572541,1706015433228,-191.50832139,0.00022999,2]
[312572542,1706015433242,-281.95764708,0.00022999,2]
[312572543,1706015433252,-191.50832139,0.00022999,2]
[312572544,1706015433262,-281.95764708,0.00022999,2]
[312572545,1706015433272,-191.50832139,0.00022999,2]
[312572546,1706015433282,-281.95764708,0.00022999,2]
[312572547,1706015433292,-281.95764708,0.00022999,2]
[312572548,1706015433301,-191.50832139,0.00022999,2]
[312572549,1706015433311,-281.95764708,0.00022999,2]
[312572550,1706015433321,-191.50832139,0.00022999,2]
[312572551,1706015433331,-281.95764708,0.00022999,2]
[312572552,1706015433340,-191.50832139,0.00022999,2]
[312572553,1706015433350,-281.95764708,0.00022999,2]
[312572554,1706015433360,-191.50832139,0.00022999,2]
[312572555,1706015433369,-281.95764708,0.00022999,2]
[312572556,1706015433379,-191.50832139,0.00022999,2]
[312572557,1706015433389,-281.95764708,0.00022999,2]
[312572558,1706015433399,-191.50832139,0.00022999,2]
[312572559,1706015433409,-281.95764708,0.00022999,2]
[312572560,1706015433418,-191.50832139,0.00022999,2]
[312572561,1706015433428,-281.95764708,0.00022999,2]
[312572562,1706015433438,-191.50832139,0.00022999,2]
[312572563,1706015433447,-281.95764708,0.00022999,2]
[312572564,1706015433458,-191.50832139,0.00022999,2]
[312572565,1706015433467,-281.95764708,0.00022999,2]
[312572566,1706015433477,-191.50832139,0.00022999,2]
[312572567,1706015433491,-281.95764708,0.00022999,2]
[312572568,1706015433501,-191.50832139,0.00022999,2]
[312572569,1706015433510,-281.95764708,0.00022999,2]
[312572570,1706015433520,-191.50832139,0.00022999,2]
[312572571,1706015433530,-281.95764708,0.00022999,2]
[312572572,1706015433540,-191.50832139,0.00022999,2]
[312572573,1706015433550,-1467.30916209,0.00023,2]
[312572574,1706015433566,-1982.75919255,0.00023,2]
[312572575,1706015433578,-2114.12217501,0.00023,2]
[312572576,1706015433602,-23301.19186123,0.00023,2]
[312572577,1706015433614,-781.06,0.00023,2]
[312572578,1706015433626,-1138.31996974,0.00023,2]
[312572579,1706015433641,-36712.81023106,0.00023,2]
[312572580,1706015433654,-35412.8793041,0.00023,2]
[312572581,1706015433678,-566.41315738,0.00023,2]
[312572582,1706015433690,-3620.60015891,0.00023,2]
[312572583,1706015433701,-400.0,0.00023,2]
[312572584,1706015433714,-779.27224229,0.00023,2]
[312572585,1706015438135,-1410.284513,0.000229,6]
[312572586,1706015438160,-28589.715487,0.00023,2]
[312572592,1706015438236,-588.0,0.00023,2]
[312572593,1706015438250,-910.7364,0.00023,2]
[312572594,1706015438262,-4048.45542248,0.00023,2]
[312572595,1706015438315,-1943.92007984,0.00023,2]
[312572596,1706015438385,-662.52034295,0.000229,2]
[312572597,1706015438443,-321.85501801,0.000229,2]
[312572598,1706015438453,-9671674.66458349,0.00023,2]
[312572599,1706015438465,-102165.45412706,0.00023,2]
[312572600,1706015438477,-103767.63632906,0.00023,2]
[312572601,1706015438505,-6171040.85585118,0.00023,2]
[312572602,1706015438516,-41394.19560832,0.00023,2]
[312572603,1706015438528,-123806.74077233,0.00023,2]
[312572604,1706015438540,-35138.24219893,0.00023,2]
[312572605,1706015438554,-694.45765814,0.00023,2]
[312572606,1706015438578,-3221.67880664,0.00023,2]
[312572631,1706015440730,-1195.000022,0.00023,2]
[312572632,1706015440741,-1921.87499979,0.00023,2]
[312572633,1706015440754,-1977.59759272,0.00023,2]
[312572634,1706015440765,-1752.82778415,0.00023,2]
[312572635,1706015441271,-34967.23749349,0.00023,2]
[312572636,1706015441332,-463.19576526,0.00023,2]
[312572637,1706015441349,-14292.07396988,0.00023,2]
[312572638,1706015441415,-259.9777633,0.00023,2]
[312572639,1706015441431,-326.00831422,0.00023,2]
[312572670,1706015441857,-71642.03124966,0.00023,2]
[312572676,1706015441903,-11129.21399997,0.00023,2]
[312572680,1706015441930,-4159.36600708,0.00023,2]
[312572682,1706015441943,-680.19735805,0.00023,2]
[312572685,1706015441961,-435.2938084,0.00023,2]
[312572687,1706015441975,-590.39596237,0.00023,2]
[312572690,1706015441988,-43056.8335826,0.00023,2]
[312572692,1706015442003,-510.98056953,0.00023,2]
[312572693,1706015442016,-9894.22995996,0.00023,2]
[312572761,1706015443365,-295.73068383,0.00022999,2]
[312572766,1706015443376,-418.44153932,0.00022999,2]
[312572771,1706015443388,-638.36961139,0.00023,2]
[312572778,1706015443401,-390.85014,0.00023,2]
[312572783,1706015443414,-415.04364852,0.00023,2]
[312572789,1706015443429,-355.87695607,0.00023,2]
[312572794,1706015443442,-5631.3,0.00023,2]
[312572799,1706015443455,-501.9,0.00023,2]
[312572805,1706015443468,-1066.32182804,0.00023,2]
[312572809,1706015443482,-499.63199752,0.00023,2]
[312572816,1706015443495,-2886.21561613,0.00023,2]
[312572819,1706015443510,-2062.59623598,0.00023,2]
[312572823,1706015443524,-520.13144372,0.00023,2]
[312572827,1706015443552,-2881.14072577,0.00023,2]
[312572829,1706015443566,-699.5899999,0.00023,2]
[312572832,1706015443583,-351864.81694914,0.00023,2]
[312572835,1706015443596,-5244.82524946,0.00023,2]
[312572837,1706015443609,-1413.32512988,0.00023,2]
[312572839,1706015443621,-152727.99155217,0.00023,2]
[312572842,1706015443634,-1783.85095569,0.00023,2]
[312572845,1706015443652,-1211.32001,0.00023,2]
[312572848,1706015443670,-23630.67484601,0.00023,2]
[312572850,1706015443683,-1340.55421316,0.00023,2]
[312572852,1706015443696,-1039.9999,0.00023,2]
[312572855,1706015443710,-1698.03735021,0.00023,2]
[312572857,1706015443723,-613.99421483,0.00023,2]
[312572860,1706015443736,-938.032615,0.00023,2]
[312572862,1706015443748,-250.48040969,0.00023,2]
[312572867,1706015443810,-4477.17872747,0.00023,2]
[312572869,1706015443823,-1950.40470994,0.00023,2]
[312572871,1706015443836,-2718.69080962,0.00023,2]
[312572873,1706015443850,-3924.53627189,0.00023,2]
[312572884,1706015443975,-155.0,0.00022998,2]
[312572886,1706015443986,-544.32514676,0.00022999,2]
[312572888,1706015443997,-400.17840957,0.00023,2]
[312572889,1706015444012,-13581.77020716,0.00023,2]
[312572897,1706015446336,-191.04557841,0.00022998,2]
[312572898,1706015446346,-216.13698658,0.00022998,2]
[312572899,1706015446355,-371.50432901,0.00022999,2]
[312572900,1706015446366,-7785.49085391,0.00023,2]
[312572901,1706015446378,-8918.08498465,0.00023,2]
[312572902,1706015446389,-15975.86787418,0.00023,2]
[312572903,1706015446399,-9213.35547089,0.00023,2]
[312572904,1706015446410,-38916.07181678,0.00023,2]
[312572905,1706015446421,-64216.39130482,0.00023,2]
[312572906,1706015446432,-7015.48019876,0.00023,2]
[312572907,1706015446445,-534.8719907,0.00023,2]
[312572908,1706015446456,-698.217762,0.00023,2]
[312572909,1706015446467,-468.15656245,0.00023,2]
[312572910,1706015446478,-446017.24435933,0.00023,2]
[312572911,1706015446489,-1296.72635808,0.00023,2]
[312572912,1706015446500,-469.89491661,0.00023,2]
[312572913,1706015446514,-3637.73846599,0.00023,2]
[312572914,1706015446551,-3210.95281317,0.00023,2]
[312572915,1706015446571,-2164.51105991,0.00023,2]
[312572916,1706015446582,-4840.0,0.00023,2]
[312572917,1706015446601,-264.30000001,0.00023,2]
[312572918,1706015446612,-282.36462342,0.00023,2]
[312572919,1706015446623,-41296.0050903,0.00023,2]
[312572920,1706015446635,-32667.25841742,0.00023,2]
[312572921,1706015446654,-2084.04979506,0.00023,2]
[312572922,1706015446666,-264.64758707,0.00023,2]
[312572923,1706015446677,-1507.96119481,0.00023,2]
[312572924,1706015446688,-303.22,0.00023,2]
[312572925,1706015446716,-623.36938575,0.00023,2]
[312572927,1706015446727,-641.90907799,0.00023,2]
[312572929,1706015446738,-808.88975251,0.00023,2]
[312572930,1706015446749,-4483.63796419,0.00023,2]
[312572931,1706015446765,-2712.9618369,0.00023,2]
[312572932,1706015446809,-1468.49131176,0.00023,2]
[312572933,1706015478494,-2390.91580753,0.00022078,2]
[312572934,1706015478516,-4492.19656681,0.00022997,2]
[312572935,1706015478544,-867.95596008,0.00022998,2]
[312572936,1706015478566,-1265.91696724,0.00022998,2]
[312572937,1706015478586,-278.87100645,0.00022998,2]
[312572938,1706015478607,-2075.49642563,0.00022998,2]
[312572939,1706015478636,-155.27228325,0.00022998,2]
[312572940,1706015478655,-155.0,0.00022998,2]
[312572941,1706015478675,-418.21791161,0.00022998,2]
[312572942,1706015478695,-177.88514416,0.00022998,2]
[312572943,1706015478715,-2146.10378163,0.00022998,2]
[312572944,1706015478735,-155.0,0.00022999,2]
[312572945,1706015478755,-2671.28920038,0.00022999,2]
[312572946,1706015478776,-254.69516622,0.00022999,2]
[312572947,1706015478800,-2524.82707088,0.00022999,2]
[312572948,1706015478820,-164.72912122,0.00022999,2]
[312572949,1706015478839,-1707.32196957,0.00022999,2]
[312572950,1706015478859,-3098.30561734,0.00022999,2]
[312572995,1706015524273,216.13402269,0.0002,2]
[312572996,1706015546243,155.0,0.0002,2]
[312572997,1706015566277,155.0,0.0002,2]
[312572998,1706015582243,155.0,0.0002,2]
[312572999,1706015600263,155.0,0.0002,2]
[312573000,1706015618623,155.0,0.0002,2]
[312573001,1706015634253,155.0,0.0002,2]
[312573002,1706015654260,220.18450314,0.0002,2]
[312573003,1706015828282,309.68,0.00021831,2]
[312573007,1706015890206,11408.98470586,0.00021905,2]
[312573008,1706015911878,343.87,0.0001987,2]
[312573009,1706016385619,5256.333328,0.00020923,2]
[312573010,1706016442331,326.67,0.00019257,2]
[312573021,1706016631498,-155.0,0.00021016,2]
[312573022,1706016631508,-566.67956883,0.00021016,2]
[312573023,1706016631520,-301.27639125,0.00021016,2]
[312573024,1706016631530,-45.20664569,0.00021017,2]
[312573025,1706016631588,-172.9760629,0.00021017,2]
[312573026,1706016631599,-504.41543892,0.00021018,2]
[312573027,1706016631609,-150.0,0.00021019,2]
[312573028,1706016631619,-150.0,0.00021023,2]
[312573029,1706016631628,-11697.60849818,0.00021024,2]
[312573030,1706016631641,-510.09160601,0.00021024,2]
[312573036,1706016638472,-270.31068666,0.00021015,2]
[312573037,1706016638481,-305.30503716,0.00021024,2]
[312573038,1706016638494,-10066.87887368,0.00021024,2]
[312573039,1706016638505,-50.95575156,0.00021024,2]
[312573040,1706016638515,-1315.39424844,0.00021025,2]
[312573041,1706016638552,-350.8,0.00021025,2]
[312573042,1706016638597,-4824.64311185,0.00021025,2]
[312573043,1706016638607,-12122.8,0.00021039,2]
[312573044,1706016638617,-716.73,0.00021067,2]
[312573045,1706016638626,-200.0,0.00021079,2]
[312573046,1706016638636,-392.75,0.00021079,2]
[312573047,1706016638645,-1758.89,0.00021083,2]
[312573048,1706016638655,-176.15,0.00021123,2]
[312573049,1706016638664,-250.0,0.00021123,2]
[312573050,1706016638673,-405.58,0.00021155,2]
[312573051,1706016638682,-1178.42,0.00021199,2]
[312573052,1706016638695,-258.06,0.00021282,2]
[312573053,1706016638704,-800.0,0.00021311,2]
[312573054,1706016638714,-6783.95,0.00021311,2]
[312573055,1706016638723,-2000.0,0.00021422,2]
[312573056,1706016638733,-162.32,0.00021431,2]
[312573057,1706016638742,-10762.01,0.0002147,2]
[312573058,1706016638751,-150.0,0.00021473,2]
[312573059,1706016638760,-326.67,0.00021521,2]
[312573060,1706016638769,-162.32,0.0002157,2]
[312573061,1706016638779,-356.91,0.00021644,2]
[312573062,1706016638788,-1480.82725397,0.00021662,2]
[312573063,1706016638796,-162.32,0.0002171,2]
[312573064,1706016638806,-162.32,0.00021849,2]
[312573065,1706016638814,-1015.27508866,0.00021904,2]
[312573066,1706016638823,-250.0,0.00021918,2]
[312573067,1706016638833,-162.32,0.00021989,2]
[312573068,1706016638842,-176.47,0.00022,2]
[312573069,1706016638851,-257.2,0.00022,2]
[312573071,1706016638860,-1480.82725397,0.00022001,2]